bitfinex-derivatives/quotes_SOLF0:USTF0_20241127
["timestamp","ask_amount","ask_price","bid_price","bid_amount"]
[1732741453561,2.4261,242.19,242.05,3.1]
[1732741453762,2.4261,242.19,241.99,15.75347018]
[1732741453763,2.4261,242.19,242.06,3.1]
[1732741454064,2.0619,242.14,242.06,3.1]
[1732741454950,2.0619,242.14,242.07,2.0625]
[1732741455361,2.4261,242.19,242.06,3.1]
[1732741455565,2.4261,242.19,242.06,5.1626]
[1732741455566,2.062,242.13,242.06,5.1626]
[1732741455965,2.0621,242.12,242.06,3.1]
[1732741456162,2.4261,242.19,242.06,3.1]
[1732741457166,2.0618,242.16,242.06,3.1]
[1732741457362,2.4261,242.19,242.06,3.1]
[1732741457857,2.0621,242.12,242.04,2.0627]
[1732741458063,2.0621,242.12,242.05,3.1]
[1732741458458,2.4261,242.19,242.05,3.1]
[1732741459262,2.4261,242.19,242.09,2.0623]
[1732741459764,2.4261,242.19,242.05,3.1]
[1732741460165,9.82185011,242.16,242.05,3.1]
[1732741460663,2.0621,242.12,242.05,3.1]
[1732741460870,9.82185011,242.16,242.05,3.1]
[1732741461259,2.4261,242.19,242.05,3.1]
[1732741462564,2.4261,242.19,242.04,9.82185011]
[1732741462565,9.82185011,242.16,242.0,12.41075011]
[1732741462765,9.82185011,242.16,242.01,3.1]
[1732741463157,2.062,242.13,242.05,2.0626]
[1732741463364,9.82185011,242.16,242.0,12.41075011]
[1732741463667,2.0623,242.09,242.04,3.1]
[1732741465167,9.82185011,242.12,242.01,3.1]
[1732741465363,4.9457,242.11,242.01,3.1]
[1732741466165,7.0079,242.11,242.01,3.1]
[1732741466872,7.0079,242.11,242.03,2.0627]
[1732741467060,2.0622,242.11,242.03,2.0627]
[1732741467261,2.0622,242.11,242.01,3.1]
[1732741467461,9.82185011,242.16,242.01,3.1]
[1732741467666,4.8853,242.18,242.03,9.82185011]
[1732741468161,4.8853,242.18,242.08,2.0623]
[1732741468162,2.0618,242.16,242.08,2.0623]
[1732741468361,2.0618,242.16,242.02,2.5445]
[1732741468362,2.4224,242.18,242.09,3.1]
[1732741468567,2.4261,242.19,242.1,3.1]
[1732741469366,4.4876,242.19,242.11,2.0621]
[1732741469564,4.4876,242.19,242.1,3.1]
[1732741470778,9.82185011,242.23,242.1,3.1]
[1732741471076,2.4373,242.26,242.11,9.82185011]
[1732741471276,2.0614,242.2,242.13,2.062]
[1732741472471,2.4373,242.26,242.11,9.82185011]
[1732741472676,2.0613,242.22,242.11,9.82185011]
[1732741472973,2.4373,242.26,242.11,9.82185011]
[1732741473866,2.0614,242.21,242.11,9.82185011]
[1732741474277,2.4373,242.26,242.11,9.82185011]
[1732741474477,2.0613,242.21,242.15,2.0618]
[1732741474675,2.0613,242.21,242.11,9.82185011]
[1732741476177,2.0613,242.21,242.14,2.0619]
[1732741477372,2.0612,242.22,242.16,2.0617]
[1732741477575,2.0612,242.22,242.17,3.1]
[1732741479679,2.0613,242.21,242.17,3.1]
[1732741479881,2.4373,242.26,242.17,3.1]
[1732741480573,2.4373,242.26,242.11,9.82185011]
[1732741480777,2.0612,242.22,242.12,3.02]
[1732741480982,2.4373,242.26,242.12,3.02]
[1732741481483,2.0615,242.19,242.12,3.02]
[1732741481680,9.82185011,242.19,242.02,5.26830381]
[1732741481878,9.82185011,242.19,242.03,3.02]
[1732741482576,2.0619,242.14,242.03,3.02]
[1732741482785,9.82185011,242.19,242.05,9.82185011]
[1732741483081,2.0618,242.16,242.05,9.82185011]
[1732741483580,2.4373,242.26,242.15,2.0617]
[1732741483787,2.4373,242.26,242.15,5.0817]
[1732741483977,2.4373,242.26,242.15,3.02]
[1732741485386,2.0613,242.22,242.15,3.02]
[1732741485589,2.4373,242.26,242.16,2.0616]
[1732741485990,2.4373,242.26,242.15,3.02]
[1732741486191,2.4373,242.26,242.16,2.0617]
[1732741486490,2.0612,242.23,242.15,3.02]
[1732741487087,2.0611,242.23,242.15,5.0818]
[1732741487889,2.4373,242.26,242.15,5.0818]
[1732741489394,2.0612,242.22,242.15,3.02]
[1732741489594,2.4373,242.26,242.15,3.02]
[1732741491294,9.82185011,242.25,242.15,3.02]
[1732741491693,2.0612,242.22,242.15,3.02]
[1732741491990,9.82185011,242.25,242.15,3.02]
[1732741492996,2.0613,242.22,242.15,3.02]
[1732741494295,2.0611,242.24,242.15,3.02]
[1732741494792,2.0611,242.24,242.16,2.0617]
[1732741496486,2.4373,242.26,242.15,3.02]
[1732741496682,4.4832,242.27,242.17,9.82185011]
[1732741496883,19.24678411,242.31,242.17,9.82185011]
[1732741497089,2.0606,242.3,242.17,9.82185011]
[1732741497290,9.82185011,242.34,242.17,9.82185011]
[1732741497483,2.4005,242.35,242.24,9.82185011]
[1732741497789,2.4005,242.35,242.24,12.84185011]
[1732741498681,2.0603,242.33,242.24,12.84185011]
[1732741500290,2.0604,242.32,242.24,12.84185011]
[1732741502196,2.0604,242.31,242.24,12.84185011]
[1732741502495,9.82185011,242.32,242.2,3.02]
[1732741503191,9.82185011,242.29,242.16,2.4146]
[1732741503391,9.82185011,242.26,242.15,3.02]
[1732741503591,2.4638,242.25,242.15,3.02]
[1732741503999,2.0614,242.21,242.15,3.02]
[1732741504298,2.4638,242.25,242.15,3.02]
[1732741504490,2.0617,242.16,242.09,12.44495011]
[1732741504689,2.0617,242.16,242.09,3.02]
[1732741505091,2.0617,242.16,242.09,5.0823]
[1732741505499,9.82185011,242.1,241.93,2.74709081]
[1732741505695,5.1676,242.09,241.93,9.82185011]
[1732741505895,5.1676,242.09,241.97,9.82185011]
[1732741506090,2.0625,242.07,241.97,9.82185011]
[1732741506291,5.1676,242.09,241.93,9.82185011]
[1732741506893,2.0628,242.04,241.93,11.88545011]
[1732741507397,5.1676,242.09,241.93,11.88545011]
[1732741507592,2.0626,242.06,241.93,9.82185011]
[1732741507800,2.0626,242.06,241.94,2.0635]
[1732741508199,2.0619,242.15,242.03,2.0628]
[1732741508398,7.98008598,242.14,242.05,9.82185011]
[1732741508599,7.98008598,242.13,242.06,3.02]
[1732741508901,2.0616,242.18,242.07,2.0625]
[1732741509498,7.97877247,242.17,242.07,2.0625]
[1732741510098,10.04047247,242.17,242.07,2.0625]
[1732741510295,7.97877247,242.17,241.93,2.74553286]
[1732741510499,2.0621,242.12,241.95,15.70822794]
[1732741510695,2.5051,242.16,241.99,15.70822794]
[1732741510899,2.5051,242.16,241.99,17.77132794]
[1732741511102,2.5051,242.16,241.99,2.0631]
[1732741511301,2.0622,242.1,242.0,2.063]
[1732741511495,2.5051,242.16,242.01,2.92]
[1732741511800,2.5051,242.16,242.02,2.92]
[1732741512005,2.0622,242.1,242.02,2.92]
[1732741512195,7.97877247,242.15,242.02,2.92]
[1732741513000,7.97877247,242.15,242.02,18.62822794]
[1732741513499,7.97877247,242.15,242.03,5.1015]
[1732741513803,2.0617,242.16,242.07,2.0624]
[1732741513999,7.97877247,242.14,242.07,2.0624]
[1732741514304,2.0617,242.16,242.07,2.0624]
[1732741514693,15.70822794,242.24,242.07,2.0624]
[1732741514894,7.98062008,242.23,242.06,2.0625]
[1732741515100,2.0616,242.18,242.06,2.0625]
[1732741515294,7.98062008,242.17,242.06,2.0625]
[1732741515505,7.98062008,242.16,242.06,2.0625]
[1732741515701,15.70822794,242.24,242.06,2.0625]
[1732741515899,7.98057711,242.23,242.06,2.0625]
[1732741516099,7.98057711,242.22,242.06,2.0625]
[1732741516305,2.0617,242.17,242.06,2.0625]
[1732741516500,7.98057711,242.16,242.06,2.0625]
[1732741516703,7.98057711,242.15,242.06,2.0625]
[1732741517004,15.70822794,242.24,242.06,2.0625]
[1732741517308,2.4691,242.25,242.06,2.0625]
[1732741517309,2.0616,242.18,242.06,2.0625]
[1732741517499,7.97986332,242.17,242.03,5.1015]
[1732741517704,7.97986332,242.16,242.03,5.1015]
[1732741517900,15.70822794,242.07,241.97,2.74209099]
[1732741518206,12.42,242.15,241.72,44.08826244]
[1732741518207,15.70822794,242.01,241.81,6.3501]
[1732741518407,2.0636,241.94,241.81,6.3501]
[1732741518600,15.70822794,242.01,241.81,6.3501]
[1732741519006,15.70822794,242.01,241.82,2.92]
[1732741519805,2.0634,241.96,241.86,2.0642]
[1732741520004,15.70822794,242.01,241.82,2.92]
[1732741520201,15.70822794,242.01,241.82,18.62822794]
[1732741520401,2.0632,241.99,241.88,2.064]
[1732741520605,2.0632,241.99,241.89,2.92]
[1732741520802,2.0632,241.99,241.9,2.92]
[1732741521106,2.0632,241.99,241.82,15.70822794]
[1732741521107,2.0632,241.99,241.91,2.92]
[1732741521701,15.70822794,242.05,241.91,2.92]
[1732741522004,15.70822794,242.01,241.91,2.92]
[1732741523199,2.0631,242.0,241.91,2.92]
[1732741523506,17.88322794,242.05,241.91,2.92]
[1732741524008,2.0632,241.99,241.91,2.92]
[1732741524603,2.0633,241.98,241.91,2.92]
[1732741526612,2.0633,241.97,241.91,2.92]
[1732741527005,17.88322794,242.05,241.91,2.92]
[1732741527207,2.0629,242.03,241.91,2.92]
[1732741527909,2.175,242.05,241.91,2.92]
[1732741528609,2.063,242.01,241.91,2.92]
[1732741528809,17.88322794,242.05,241.91,2.92]
[1732741529109,15.70822794,241.97,241.82,2.92]
[1732741529308,2.0638,241.92,241.83,2.0645]
[1732741529615,15.70822794,241.97,241.83,2.0645]
[1732741530008,15.70822794,241.97,241.82,2.92]
[1732741530309,15.70822794,241.93,241.76,2.92]
[1732741530510,6.3239,241.92,241.76,2.92]
[1732741531010,6.3239,241.92,241.77,2.065]
[1732741531212,6.3239,241.92,241.77,2.92]
[1732741531412,6.3239,241.92,241.78,2.0649]
[1732741531413,2.0641,241.88,241.78,2.0649]
[1732741531605,6.3239,241.92,241.78,2.0649]
[1732741532918,6.3239,241.92,241.77,2.92]
[1732741533313,6.3239,241.92,241.71,33.73150004]
[1732741533314,6.3239,241.92,241.75,2.92]
[1732741533616,2.0644,241.85,241.76,2.0651]
[1732741535315,6.3239,241.92,241.74,4.9852]
[1732741535316,2.0645,241.84,241.74,4.9852]
[1732741535512,15.70822794,241.89,241.72,2.92]
[1732741535716,2.92,241.87,241.72,2.92]
[1732741536318,2.0647,241.81,241.72,2.92]
[1732741536718,2.92,241.87,241.72,2.92]
[1732741536919,2.92,241.87,241.73,2.0653]
[1732741537216,2.92,241.87,241.72,2.92]
[1732741537416,2.0644,241.85,241.72,2.92]
[1732741537822,2.0646,241.83,241.74,2.0652]
[1732741538021,2.92,241.87,241.72,2.92]
[1732741538518,2.0644,241.84,241.72,2.92]
[1732741538725,2.92,241.87,241.72,2.92]
[1732741539517,2.0644,241.85,241.75,2.0651]
[1732741539714,2.92,241.87,241.72,2.92]
[1732741540318,2.92,241.87,241.71,2.96]
[1732741540725,2.0647,241.82,241.73,2.0654]
[1732741541126,2.0647,241.82,241.71,2.96]
[1732741541127,2.92,241.87,241.71,2.96]
[1732741541323,2.0646,241.83,241.71,5.0255]
[1732741541530,2.92,241.87,241.71,5.0255]
[1732741541826,2.92,241.87,241.71,2.96]
[1732741542627,2.0645,241.84,241.73,2.0653]
[1732741542819,2.0645,241.84,241.71,2.96]
[1732741543023,2.92,241.87,241.71,2.96]
[1732741543527,15.70822794,241.89,241.71,2.96]
[1732741543827,6.3239,241.92,241.71,18.66822794]
[1732741544022,6.3239,241.92,241.72,2.0711]
[1732741544423,6.3239,241.92,241.79,2.0648]
[1732741544424,2.0641,241.88,241.79,2.0648]
[1732741544927,6.3239,241.92,241.72,2.0711]
[1732741545123,2.064,241.89,241.79,2.0648]
[1732741545330,2.064,241.89,241.78,2.96]
[1732741545828,6.3239,241.92,241.8,2.0648]
[1732741546025,2.0641,241.88,241.8,2.0648]
[1732741547127,2.064,241.89,241.8,2.0648]
[1732741547330,2.064,241.89,241.78,2.96]
[1732741547623,2.064,241.89,241.81,2.0647]
[1732741548231,2.0642,241.87,241.79,2.0648]
[1732741548532,15.70822794,241.89,241.78,2.96]
[1732741548728,2.0643,241.86,241.78,5.0249]
[1732741548930,15.70822794,241.89,241.78,5.0249]
[1732741549231,15.70822794,241.89,241.78,2.96]
[1732741549435,2.0644,241.85,241.78,2.96]
[1732741550728,15.70822794,241.89,241.74,2.0653]
[1732741550924,15.70822794,241.89,241.74,5.0253]
[1732741551831,2.0645,241.83,241.75,2.0652]
[1732741552232,15.70822794,241.89,241.74,2.96]
[1732741552434,15.70822794,241.89,241.67,15.70822794]
[1732741552435,2.0647,241.82,241.73,2.0654]
[1732741553026,2.0647,241.82,241.74,2.0653]
[1732741559135,9.84801765,241.84,241.72,2.96]
[1732741559337,2.0645,241.83,241.75,2.0652]
[1732741560533,2.0646,241.82,241.75,2.0652]
[1732741561343,9.84801765,241.84,241.72,2.96]
[1732741561540,9.84801765,241.8,241.72,2.96]
[1732741561741,9.84801765,241.8,241.64,12.03861765]
[1732741561742,9.84801765,241.8,241.65,2.70675936]
[1732741561939,9.84801765,241.8,241.49,5.63995736]
[1732741561940,9.84801765,241.76,241.58,4.33200262]
[1732741562237,2.066,241.66,241.58,2.96]
[1732741562443,9.84801765,241.68,241.51,9.84801765]
[1732741562640,9.84801765,241.64,241.52,2.96]
[1732741563032,6.3911,241.67,241.41,2.07440534]
[1732741563033,9.84801765,241.6,241.41,2.07440534]
[1732741563233,9.84801765,241.56,241.37,2.96]
[1732741563443,2.0671,241.53,241.42,2.068]
[1732741563646,9.84801765,241.56,241.42,2.068]
[1732741564041,9.84801765,241.56,241.38,2.96]
[1732741564042,2.0671,241.53,241.39,9.84801765]
[1732741564342,18.75429376,241.58,241.38,2.96]
[1732741564537,2.0671,241.53,241.38,2.96]
[1732741564737,15.79429376,241.54,241.38,2.96]
[1732741564943,15.79429376,241.5,241.32,2.1906]
[1732741565242,2.96,241.49,241.32,4.2594]
[1732741565441,2.96,241.49,241.32,2.1906]
[1732741565633,2.96,241.49,241.29,2.96]
[1732741566136,2.96,241.49,241.32,2.0689]
[1732741566838,2.96,241.49,241.26,15.79429376]
[1732741567038,2.96,241.49,241.3,2.069]
[1732741567243,2.96,241.49,241.27,2.96]
[1732741567244,15.79429376,241.46,241.27,2.96]
[1732741568838,15.79429376,241.46,241.25,2.96]
[1732741569244,2.0682,241.4,241.28,2.0692]
[1732741569737,15.79429376,241.46,241.28,2.0692]
[1732741569738,2.0683,241.39,241.28,2.0692]
[1732741569949,2.0683,241.39,241.27,2.0693]
[1732741570645,2.0684,241.38,241.27,2.0693]
[1732741570943,2.94,241.41,241.25,2.96]
[1732741571239,15.79429376,241.4,241.24,2.0695]
[1732741571742,15.79429376,241.4,241.25,2.0695]
[1732741571743,2.0685,241.37,241.25,2.0695]
[1732741572143,15.79429376,241.44,241.23,5.1215]
[1732741572344,2.0681,241.42,241.23,5.1215]
[1732741572839,2.0681,241.42,241.31,2.0689]
[1732741573243,2.0681,241.41,241.23,5.1215]
[1732741573444,15.79429376,241.44,241.23,5.1215]
[1732741573844,2.0682,241.4,241.23,5.1215]
[1732741574047,15.79429376,241.44,241.23,5.1215]
[1732741574236,2.94,241.45,241.23,5.1215]
[1732741574446,2.94,241.45,241.29,15.79429376]
[1732741574640,2.043,241.52,241.3,2.94]
[1732741574844,2.043,241.52,241.33,15.79429376]
[1732741575535,2.0673,241.51,241.33,15.79429376]
[1732741575746,2.043,241.52,241.33,15.79429376]
[1732741576141,2.043,241.52,241.29,15.79429376]
[1732741576441,2.043,241.52,241.3,2.94]
[1732741576641,2.0677,241.47,241.35,2.0686]
[1732741576846,15.79429376,241.46,241.3,2.94]
[1732741577846,2.0679,241.44,241.3,2.94]
[1732741578237,15.79429376,241.5,241.3,2.94]
[1732741578740,15.79429376,241.46,241.3,2.94]
[1732741578942,15.79429376,241.46,241.29,2.94]
[1732741578943,2.0682,241.4,241.29,2.94]
[1732741579138,18.73429376,241.46,241.29,2.94]
[1732741579343,2.0681,241.41,241.29,5.0091]
[1732741579544,18.73429376,241.46,241.29,5.0091]
[1732741579746,18.73429376,241.46,241.29,2.94]
[1732741580344,15.79429376,241.46,241.29,2.94]
[1732741580551,15.79429376,241.5,241.29,18.73429376]
[1732741580852,2.043,241.52,241.29,18.73429376]
[1732741581238,2.0675,241.48,241.38,2.0683]
[1732741581651,2.0676,241.47,241.38,2.0683]
[1732741582047,2.043,241.52,241.37,2.94]
[1732741582344,2.068,241.43,241.37,2.94]
[1732741582546,15.79429376,241.47,241.37,2.94]
[1732741582851,2.0679,241.44,241.37,2.94]
[1732741583149,2.043,241.52,241.37,5.0084]
[1732741583347,2.043,241.52,241.37,2.94]
[1732741584251,15.79429376,241.5,241.37,2.94]
[1732741584848,15.79429376,241.46,241.37,2.94]
[1732741585051,15.79429376,241.46,241.32,2.94]
[1732741585346,15.79429376,241.46,241.37,2.0684]
[1732741585547,15.79429376,241.5,241.37,2.0684]
[1732741586850,15.79429376,241.5,241.32,2.94]
[1732741587147,15.79429376,241.46,241.34,2.0687]
[1732741588054,15.79429376,241.42,241.15,2.94]
[1732741588250,15.79429376,241.42,241.18,15.79429376]
[1732741588450,15.79429376,241.42,241.22,15.79429376]
[1732741588756,15.79429376,241.42,241.23,2.94]
[1732741589164,2.0682,241.4,241.28,2.0692]
[1732741589346,15.79429376,241.42,241.23,2.94]
[1732741589851,15.79429376,241.42,241.3,2.069]
[1732741590352,15.79429376,241.42,241.23,2.94]
[1732741590757,2.94,241.44,241.23,2.94]
[1732741591054,15.79429376,241.46,241.33,2.0688]
[1732741591449,2.0682,241.41,241.33,2.0688]
[1732741591646,2.94,241.47,241.3,2.94]
[1732741591647,15.79429376,241.42,241.3,2.94]
[1732741591850,4.4828,241.41,241.22,15.79429376]
[1732741592051,4.4828,241.41,241.28,2.0692]
[1732741592361,9.88589971,241.37,241.28,2.0692]
[1732741592858,9.88589971,241.37,241.32,2.0689]
[1732741593065,9.88589971,241.37,241.24,2.94]
[1732741593360,2.0688,241.34,241.27,2.0693]
[1732741593655,9.88589971,241.37,241.24,2.94]
[1732741593853,2.0688,241.33,241.25,2.0694]
[1732741594051,2.0688,241.33,241.23,2.94]
[1732741594448,15.81906553,241.38,241.22,2.0697]
[1732741594449,2.0691,241.3,241.22,2.0697]
[1732741594659,15.81906553,241.38,241.2,2.94]
[1732741595254,15.81906553,241.38,241.23,2.0697]
[1732741596059,15.81906553,241.38,241.24,2.0696]
[1732741596360,15.81906553,241.34,241.18,2.94]
[1732741596563,18.75906553,241.34,241.18,2.94]
[1732741597056,18.75906553,241.34,241.16,2.94]
[1732741597264,15.81906553,241.3,241.16,2.94]
[1732741597559,4.2823,241.29,241.19,2.0699]
[1732741597760,4.2823,241.29,241.16,2.94]
[1732741598156,4.2823,241.29,241.17,2.0701]
[1732741598456,4.2823,241.29,241.16,2.94]
[1732741598949,2.0696,241.25,241.16,5.0102]
[1732741599150,2.0696,241.25,241.16,2.94]
[1732741599361,4.2823,241.29,241.16,2.94]
[1732741599759,2.0696,241.24,241.15,2.0703]
[1732741600055,2.88,241.25,241.1,2.88]
[1732741601660,2.0698,241.22,241.14,2.0704]
[1732741601855,15.81906553,241.22,241.07,2.88]
[1732741602256,15.81906553,241.22,241.06,2.2029]
[1732741602557,2.0702,241.17,241.1,2.0707]
[1732741602757,15.81906553,241.22,241.1,2.0707]
[1732741603561,2.07,241.2,241.11,2.0707]
[1732741603761,15.81906553,241.22,241.06,2.2029]
[1732741604249,2.0701,241.18,241.06,2.2029]
[1732741604849,2.0701,241.18,241.1,2.0708]
[1732741605859,15.81906553,241.18,241.02,2.88]
[1732741606060,4.2067,241.17,241.02,2.88]
[1732741606258,12.42,241.29,241.02,2.88]
[1732741606259,2.0697,241.23,241.16,2.0702]
[1732741606760,2.0697,241.23,241.06,2.71317879]
[1732741606761,2.0697,241.23,241.14,2.0704]
[1732741607062,5.0485,241.26,241.09,2.88]
[1732741607358,5.0485,241.26,241.1,2.71597658]
[1732741607560,2.0696,241.24,241.16,2.0702]
[1732741607762,2.1685,241.26,241.09,18.69906553]
[1732741608061,2.1685,241.26,241.1,9.02647426]
[1732741608264,2.1685,241.26,241.19,2.07]
[1732741608565,2.1685,241.26,241.11,2.71732081]
[1732741608754,2.1685,241.26,241.12,2.71732081]
[1732741608958,2.1685,241.26,241.21,2.0698]
[1732741609755,18.69906553,241.31,241.16,2.88]
[1732741609959,4.9735,241.34,241.16,2.88]
[1732741610165,15.81906553,241.27,241.14,2.88]
[1732741610357,15.81906553,241.27,241.17,2.0702]
[1732741611157,15.81906553,241.27,241.1,6.3107]
[1732741611158,15.81906553,241.27,241.15,2.0703]
[1732741611466,15.81906553,241.27,241.13,2.88]
[1732741611867,2.0694,241.26,241.13,2.88]
[1732741612165,15.81906553,241.27,241.13,2.88]
[1732741612563,2.0695,241.25,241.16,2.0702]
[1732741612961,2.0695,241.25,241.13,2.88]
[1732741613661,15.81906553,241.27,241.15,2.0703]
[1732741613662,2.0697,241.23,241.15,2.0703]
[1732741614163,11.96630384,241.23,241.15,2.0703]
[1732741614369,11.96630384,241.23,241.16,2.0702]
[1732741614762,9.89660384,241.23,241.16,2.0702]
[1732741616668,11.96630384,241.23,241.16,2.0702]
[1732741617569,2.0698,241.22,241.14,2.0704]
[1732741618064,2.0698,241.21,241.11,2.88]
[1732741618269,2.0698,241.21,241.14,2.0704]
[1732741618565,2.0698,241.21,241.11,2.88]
[1732741619162,2.07,241.19,241.1,4.129]
[1732741619964,9.89660384,241.15,241.04,5.0234]
[1732741620666,2.0705,241.13,241.04,5.0234]
[1732741621571,9.89660384,241.15,241.04,5.0234]
[1732741621770,9.89660384,241.15,241.04,2.88]
[1732741621979,2.0202,241.18,241.04,2.88]
[1732741621980,9.89660384,241.12,241.04,2.88]
[1732741622267,2.0708,241.1,241.05,2.0712]
[1732741622473,2.0202,241.18,241.01,2.88]
[1732741622474,9.89660384,241.15,241.01,2.88]
[1732741622768,9.89660384,241.15,241.06,2.0711]
[1732741622769,2.0706,241.12,241.06,2.0711]
[1732741622966,9.89660384,241.15,241.01,2.88]
[1732741623167,11.91680384,241.18,241.02,9.89660384]
[1732741623372,2.0703,241.16,241.02,9.89660384]
[1732741623968,11.91680384,241.18,241.02,9.89660384]
[1732741624172,2.0702,241.17,241.02,9.89660384]
[1732741624568,2.0202,241.18,241.05,9.89660384]
[1732741624969,11.91680384,241.18,241.1,2.0708]
[1732741625171,2.0703,241.16,241.02,9.89660384]
[1732741626174,2.0703,241.16,241.11,2.0707]
[1732741626679,11.91680384,241.18,241.09,2.0708]
[1732741626871,11.91680384,241.18,241.02,9.89660384]
[1732741627574,2.0704,241.15,241.11,2.0707]
[1732741627773,2.0704,241.15,241.02,9.89660384]
[1732741628169,2.0704,241.15,241.1,2.0707]
[1732741628977,2.0705,241.14,241.1,2.0707]
[1732741629675,2.0704,241.15,241.1,2.0707]
[1732741630072,11.91680384,241.18,240.99,2.0296]
[1732741630279,2.0705,241.14,241.0,12.67660384]
[1732741630473,11.91680384,241.18,241.0,12.67660384]
[1732741630879,2.0706,241.13,241.06,2.0711]
[1732741631083,2.0706,241.13,241.0,12.67660384]
[1732741631279,2.0703,241.17,241.1,2.0707]
[1732741631486,11.91680384,241.18,241.0,12.67660384]
[1732741632082,9.89660384,241.14,241.0,9.89660384]
[1732741632287,9.89660384,241.14,241.01,2.78]
[1732741632792,2.0709,241.09,241.03,2.0713]
[1732741633385,9.89660384,241.14,241.03,2.0713]
[1732741633587,2.0708,241.1,241.03,2.0713]
[1732741634186,9.89660384,241.14,241.06,2.0711]
[1732741634187,11.96710384,241.14,241.06,2.0711]
[1732741634785,9.89660384,241.14,241.01,2.78]
[1732741635489,9.89660384,241.14,241.06,2.0711]
[1732741637087,9.89660384,241.14,241.01,2.78]
[1732741637088,11.96700384,241.14,241.07,2.071]
[1732741637288,2.0202,241.18,240.93,14.27071537]
[1732741637494,2.0709,241.09,240.93,12.01540384]
[1732741637990,9.89660384,241.1,240.93,12.01540384]
[1732741638290,8.0103171,241.09,240.93,12.01540384]
[1732741638489,9.89660384,241.1,240.99,2.0716]
[1732741638690,2.071,241.07,240.93,12.01540384]
[1732741638887,2.071,241.07,240.94,2.78]
[1732741639294,2.071,241.07,241.0,2.0715]
[1732741640688,2.0709,241.09,241.03,2.0714]
[1732741640894,2.0709,241.09,240.96,9.89660384]
[1732741641394,2.0709,241.09,241.02,2.0714]
[1732741641597,9.89660384,241.1,240.96,9.89660384]
[1732741641891,4.7132,241.22,240.96,9.89660384]
[1732741641892,2.5612,241.22,241.08,9.89660384]
[1732741642089,2.5612,241.22,241.09,2.78]
[1732741642294,17.9071386,241.21,241.09,2.78]
[1732741642491,9.89660384,241.21,241.09,2.78]
[1732741642996,11.96640384,241.21,241.14,2.0704]
[1732741643196,8.01098115,241.2,241.14,2.0704]
[1732741643394,8.01098115,241.19,241.15,2.0703]
[1732741643593,2.5612,241.22,241.09,2.78]
[1732741643787,17.91024131,241.21,241.09,2.78]
[1732741643993,8.01363747,241.2,241.09,2.78]
[1732741644191,10.08363747,241.2,241.12,2.0706]
[1732741644392,10.08363747,241.2,241.09,2.78]
[1732741644393,8.01363747,241.19,241.09,2.78]
[1732741644696,2.5612,241.22,241.09,2.78]
[1732741644891,8.01540498,241.21,241.14,2.0704]
[1732741645090,8.01540498,241.21,241.09,2.78]
[1732741645289,17.91200882,241.2,241.09,2.78]
[1732741645493,2.5612,241.22,241.13,9.89660384]
[1732741645494,8.01574189,241.19,241.13,9.89660384]
[1732741645697,2.5612,241.22,241.16,9.89660384]
[1732741645994,4.08264252,241.37,241.19,9.89660384]
[1732741645995,2.069,241.31,241.19,9.89660384]
[1732741646193,8.01342511,241.3,241.22,9.89660384]
[1732741646499,2.0686,241.35,241.27,2.0693]
[1732741646706,8.00752576,241.34,241.27,2.0693]
[1732741646997,8.00752576,241.33,241.27,2.0693]
[1732741647194,8.00752576,241.33,241.23,2.78]
[1732741647195,2.0379,241.37,241.25,9.89660384]
[1732741647407,8.00121755,241.36,241.29,9.89660384]
[1732741647702,8.00121755,241.35,241.33,2.0687]